Workbook

Sheet Inicio
A1: ESTIMACIONES REALIZADAS PARA LOS MECANISMOS DE FINANCIAMIENTO SELECIONADOS
F2: METODOLOGÍA
A4: Esta hoja presenta de manera resumida las estimaciones realizadas por el ITDP. Los cálculos detallados se incluyen en las hojas 2 a 5.
A5: Instrucciones de uso: 1) Haga click en la celda verde (D8) y seleccione el mecanismo que desea consultar. 2) Vea los datos que se utilizaron para los cálculos en la celdas "Inputs". 3) Vea los resultados que arrojaron las estimaciones en las celdas "outputs". 4) Vea el potencial de generación de ingresos en las celdas "Ingresos esperados al año". 5) En la imagen (derecha) se muestra la metodología de cada mecanismo
A8: Seleccione un mecanismo: | G8: =IF(D8="Tarifas de congestión","tarifc",IF(D8="Parquímetros","estacio",IF(D8="Impuesto único a los combustibles","impg",IF(D8="Impuesto a la propiedad de vehículo","impa","Otro")))) -> Otro
A9: Inputs: | D9: =IF(D8="Tarifas de congestión","Cantidad de cruces al año en la Ruta 27",IF(D8="Parquímetros","Cantidad de cajones de estacionamiento en San José",IF(D8="Impuesto único a los combustibles","Ingresos que reciben las municipalidades (dólares)",IF(D8="Impuesto a la propiedad de vehículo","Impuesto a la propiedad de vehículo","En espera de datos")))) -> En espera de datos | E9: =IF(D9="Cantidad de cruces al año en la Ruta 27",SUM(Tarifas_Congestion!C34:K45),IF(D9="Cantidad de cajones de estacionamiento en San José",Parquimetros!C4,IF(D9="Ingresos que reciben las municipalidades (dólares)",Gasolinas!C15,IF(D9="Impuesto a la propiedad de vehículo",Marchamos_auto!I3,"En espera de datos")))) -> En espera de datos
D10: =IF(D8="Tarifas de congestión","Ingresos anuales en la Ruta 27 (dólares)",IF(D8="Parquímetros","Tarifa por hora (colones)",IF(D8="Impuesto único a los combustibles","Porcentaje dedicado a movilidad urbana sustentable ",IF(D8="Impuesto a la propiedad de vehículo","Porcentaje dedicado a movilidad urbana sustentable","En espera de datos")))) -> En espera de datos | E10: =IF(D10="Ingresos anuales en la Ruta 27 (dólares)",SUM(Tarifas_Congestion!C7:K18),IF(D10="Tarifa por hora (colones)",Parquimetros!E4,IF(D10="Porcentaje dedicado a movilidad urbana sustentable ",Gasolinas!K13,IF(D10="Porcentaje dedicado a movilidad urbana sustentable",Marchamos_auto!B13,"En espera de datos")))) -> En espera de datos
D11: =IF(D8="Tarifas de congestión","Porcentaje de autos que viajan en hora pico",IF(D8="Parquímetros","Elasticidad precio-demanda",IF(D8="Impuesto único a los combustibles","Porcentaje dedicado a movilidad urbana sustentable ",IF(D8="Impuesto a la propiedad de vehículo","Porcentaje dedicado a movilidad urbana sustentable","En espera de datos")))) -> En espera de datos | E11: =IF(D11="Porcentaje de autos que viajan en hora pico",Tarifas_Congestion!G47,IF(D11="Elasticidad precio-demanda",Parquimetros!J3,IF(D11="Porcentaje dedicado a movilidad urbana sustentable ",Gasolinas!L13,IF(D11="Porcentaje dedicado a movilidad urbana sustentable",Marchamos_auto!B14,"En espera de datos")))) -> En espera de datos
D12: =IF(D8="Tarifas de congestión","Porcentaje de autos que viajan en hora valle",IF(D8="Parquímetros","",IF(D8="Impuesto único a los combustibles","Porcentaje dedicado a movilidad urbana sustentable ",IF(D8="Impuesto a la propiedad de vehículo","Porcentaje dedicado a movilidad urbana sustentable","En espera de datos")))) -> En espera de datos | E12: =IF(D12="Porcentaje de autos que viajan en hora valle",Tarifas_Congestion!G48,IF(D12="Tarifa óptima por hora (colones)",Parquimetros!F15,IF(D12="Porcentaje dedicado a movilidad urbana sustentable ",Gasolinas!M13,IF(D12="Porcentaje dedicado a movilidad urbana sustentable",Marchamos_auto!B15,IF(D12="","","En espera de datos"))))) -> En espera de datos
D13: =IF(D8="Tarifas de congestión","Elasticidad precio-demanda",IF(D8="Parquímetros","",IF(D8="Impuesto a la propiedad de vehículo","Porcentaje dedicado a movilidad urbana sustentable",IF(D8="Impuesto único a los combustibles","Porcentaje dedicado a movilidad urbana sustentable ","")))) ->  | E13: =IF(D13="Porcentaje dedicado a movilidad urbana sustentable",Marchamos_auto!B16,IF(D13="","",IF(D13="Elasticidad precio-demanda",Tarifas_Congestion!C47,IF(D13="Porcentaje dedicado a movilidad urbana sustentable ",Gasolinas!N13,"")))) -> 
D14: =IF(D8="Parquímetros","",IF(D8="Impuesto a la propiedad de vehículo","Porcentaje dedicado a movilidad urbana sustentable",IF(D8="Impuesto único a los combustibles","Porcentaje dedicado a movilidad urbana sustentable ",""))) ->  | E14: =IF(D14="Elasticidad precio-demanda",Tarifas_Congestion!C47,IF(D14="","",IF(D14="Porcentaje dedicado a movilidad urbana sustentable",Marchamos_auto!B17,IF(D14="Porcentaje dedicado a movilidad urbana sustentable ",Gasolinas!O13,"")))) -> 
A15: Outputs: | D15: =IF(D8="Tarifas de congestión","Cantidad de cruces al año en la Ruta 27 con TC",IF(D8="Parquímetros","Tarifa óptima por hora (colones)",IF(D8="Impuesto único a los combustibles","",IF(D8="Impuesto a la propiedad de vehículo","","En espera de datos")))) -> En espera de datos | E15: =IF(D15="Cantidad de cruces al año en la Ruta 27 con TC",SUM(Tarifas_Congestion!C58:K69,Tarifas_Congestion!M58:U69),IF(D15="Tarifa óptima por hora (colones)",Parquimetros!F15,IF(D15="Supuesto: 4% a movilidad urbana sustentable",Gasolinas!G15,IF(D15="Supuesto: 2% a movilidad urbana sustentable",Marchamos_auto!C16,IF(D15="","","En espera de datos"))))) -> En espera de datos
D16: =IF(D8="Tarifas de congestión","Cruces en hora pico al año",IF(D8="Parquímetros","",IF(D8="Impuesto a la propiedad de vehículo","",IF(D8="Impuesto único a los combustibles","","En espera de datos")))) -> En espera de datos | E16: =IF(D16="Cruces en hora pico al año",SUM(Tarifas_Congestion!C58:K69),IF(D16="","","En espera de datos")) -> En espera de datos
D17: =IF(D8="Tarifas de congestión","Cruces en hora valle al año",IF(D8="Parquímetros","",IF(D8="Impuesto a la propiedad de vehículo","",IF(D8="Impuesto único a los combustibles","","En espera de datos")))) -> En espera de datos | E17: =IF(D17="Cruces en hora valle al año",Tarifas_Congestion!M70,IF(D17="","","En espera de datos")) -> En espera de datos
A18: Ingresos esperados al año: | D18: =IF(D8="Tarifas de congestión","Ingresos extra anuales en la Ruta 27 por TC (dólares)",IF(D8="Parquímetros","Ingresos extra al año (dólares)",IF(OR(D8="Impuesto a la propiedad de vehículo",D8="Impuesto único a los combustibles"),"Si se le dedica "&E10&" implica un ingreso de:","En espera de datos"))) -> En espera de datos | E18: =IF(D18="Ingresos extra anuales en la Ruta 27 por TC (dólares)",Tarifas_Congestion!L111,IF(D18="Ingresos extra al año (dólares)",Parquimetros!F8,IF(D18="Si se le dedica 0.5% implica un ingreso de:",Marchamos_auto!C13,IF(D18="Si se le dedica 1.0% implica un ingreso de:",Gasolinas!D15,"En espera de datos")))) -> En espera de datos
D19: =IF(D8="Tarifas de congestión","",IF(D8="Parquímetros","",IF(OR(D8="Impuesto a la propiedad de vehículo",D8="Impuesto único a los combustibles"),"Si se le dedica "&E11&" implica un ingreso de:","En espera de datos"))) -> En espera de datos | E19: =IF(D19="Ingresos extra anuales en la Ruta 27 por TC (dólares)",Tarifas_Congestion!L112,IF(D19="Ingresos extra al año (dólares)",Parquimetros!F9,IF(D19="Si se le dedica 0.8% implica un ingreso de:",Marchamos_auto!C14,IF(D19="","",IF(D19="Si se le dedica 2.0% implica un ingreso de:",Gasolinas!E15,"En espera de datos"))))) -> En espera de datos
D20: =IF(D8="Tarifas de congestión","",IF(D8="Parquímetros","",IF(OR(D8="Impuesto a la propiedad de vehículo",D8="Impuesto único a los combustibles"),"Si se le dedica "&E12&" implica un ingreso de:","En espera de datos"))) -> En espera de datos | E20: =IF(D20="Si se le dedica 1.0% implica un ingreso de:",Marchamos_auto!C15,IF(D20="Si se le dedica 3.0% implica un ingreso de:",Gasolinas!F15,"")) -> 
D21: =IF(D8="Tarifas de congestión","",IF(D8="Parquímetros","",IF(OR(D8="Impuesto a la propiedad de vehículo",D8="Impuesto único a los combustibles"),"Si se le dedica "&E13&" implica un ingreso de:","En espera de datos"))) -> En espera de datos | E21: =IF(D21="Si se le dedica 2.0% implica un ingreso de:",Marchamos_auto!C16,IF(D21="Si se le dedica 4.0% implica un ingreso de:",Gasolinas!G15,"")) -> 
D22: =IF(D8="Tarifas de congestión","",IF(D8="Parquímetros","",IF(OR(D8="Impuesto a la propiedad de vehículo",D8="Impuesto único a los combustibles"),"Si se le dedica "&E14&" implica un ingreso de:","En espera de datos"))) -> En espera de datos | E22: =IF(D22="Ingresos extra anuales en la Ruta 27 por TC (dólares)",Tarifas_Congestion!L115,IF(D22="Ingresos extra al año (dólares)",Parquimetros!F12,IF(D22="Si se le dedica 3.0% implica un ingreso de:",Marchamos_auto!C17,IF(D22="","",IF(D22="Si se le dedica 5.0% implica un ingreso de:",Gasolinas!H15,"En espera de datos"))))) -> En espera de datos
D23: =IF(D8="Tarifas de congestión","Análisis por caseta",IF(OR(D8="Impuesto único a los combustibles",D8="Impuesto a la propiedad de vehículo"),"No aplica (celdas vacías)",IF(D8="Parquímetros","Incremento de cajones","En espera de datos"))) -> En espera de datos
A24: =IF(D8="Tarifas de congestión","Seleccione una caseta de la celda E24 y un mes de la celda E25 para ver resultados desagregados","No aplica (celdas vacías)") -> No aplica (celdas vacías) | D24: =IF(D8="Tarifas de congestión","Caseta","") -> 
D25: =IF(D8="Tarifas de congestión","Mes","") -> 
A26: =IF(OR(D8="Impuesto a la propiedad de vehículo",D8="Impuesto único a los combustibles"),"No aplica (celdas vacías)","Input") -> Input | D26: =IF(D8="Tarifas de congestión","Cantidad de autos durante "&E25,IF(D8="Parquímetros","Incremento de cajones de estacionamiento a ",IF(D8="Impuesto único a los combustibles","",IF(D8="Impuesto a la propiedad de vehículo","","En espera de datos")))) -> En espera de datos | E26: =IF(D26="Cantidad de autos durante "&E25,VLOOKUP(E25,Tarifas_Congestion!B34:K45,MATCH(Inicio!E24,Tarifas_Congestion!B33:K33,0),FALSE),IF(D26="Incremento de cajones de estacionamiento a ",Parquimetros!C5,"")) -> 
D27: =IF(D8="Tarifas de congestión","Tarifa actual (colones)",IF(D8="Parquímetros",D10,IF(D8="Impuesto único a los combustibles","",IF(D8="Impuesto a la propiedad de vehículo","","En espera de datos")))) -> En espera de datos | E27: =IF(D27="Tarifa actual (colones)",VLOOKUP(E24,Info_tablas!B10:E18,2,FALSE),IF(D27="Tarifa por hora (colones)",E10,IF(D27="Con 0.8% de lo que reciben",E11/750000,IF(D27="Con 2% de lo que reciben",E11/750000,"")))) -> 
A28: =IF(OR(D8="Impuesto a la propiedad de vehículo",D8="Impuesto único a los combustibles"),"No aplica (celdas vacías)","Output") -> Output | D28: =IF(D8="Tarifas de congestión","Tarifa congestión hora pico (colones)",IF(D8="Parquímetros","Supuesto",IF(D8="Impuesto único a los combustibles","",IF(D8="Impuesto a la propiedad de vehículo","","En espera de datos")))) -> En espera de datos | E28: =IF(D28="Tarifa congestión hora pico (colones)",VLOOKUP(Inicio!E24,Info_tablas!B10:E18,3,FALSE),IF(D28="Supuesto","Mismo nivel de uso de los cajones",IF(D28="Con 3% de lo que reciben",E12/750000,IF(D28="Con 1% de lo que reciben",E12/750000,"")))) -> 
D29: =IF(D8="Tarifas de congestión","Tarifa congestión hora valle (colones)",IF(D8="Parquímetros","Ingresos generados por incremento de lugares (dólares)",IF(D8="Impuesto único a los combustibles","",IF(D8="Impuesto a la propiedad de vehículo","","En espera de datos")))) -> En espera de datos | E29: =IF(D29="Tarifa congestión hora valle (colones)",VLOOKUP(Inicio!E24,Info_tablas!B10:E18,4,FALSE),IF(D29="Ingresos generados por incremento de lugares (dólares)",Parquimetros!F5*0.0018,IF(D29="Con 4% de lo que reciben",E15/750000,IF(D29="Con 2% de lo que reciben",E15/750000,"")))) -> 
A30: =IF(OR(D8="Impuesto a la propiedad de vehículo",D8="Impuesto único a los combustibles"),"No aplica (celdas vacías)","Ingresos esperados al año") -> Ingresos esperados al año | D30: =IF(D8="Tarifas de congestión","Ingresos extra generados en "&E25&" por la caseta "&E24&" (dólares) ",IF(D8="Parquímetros","Ingresos extra al año (dólares)",IF(D8="Impuesto único a los combustibles","",IF(D8="Impuesto a la propiedad de vehículo","","En espera de datos")))) -> En espera de datos | E30: =IF(D30="Ingresos extra generados en "&E25&" por la caseta "&E24&" (dólares) ",VLOOKUP(E25,Tarifas_Congestion!B99:K111,MATCH(Inicio!E24,Tarifas_Congestion!B98:K98,0),0),IF(D30="Ingresos extra al año (dólares)",Parquimetros!J8,IF(D30="Con 5% de lo que reciben",E18/750000,IF(D30="Con 3% de lo que reciben",E18/750000,"")))) -> 
A31: Estas estimaciones fueron realizados de manera interna por ITDP, si tiene alguna duda favor de contactar a: isaac.medina@itdp.com o santiago.fernandez@itdp.org

Sheet Tarifas_Congestion
A1: Caso: Ruta 27
I2: Porcentaje de autos y motos
B3: 2017 | C3: 80513442
C4: =C3*0.9 -> 72462097.8
A5: Ingresos en dólares por mes y por caseta reportados por el Consejo Nacional de Concesiones (CNC) | B5: Casetas | C5: escazú | D5: ciudad colón | E5: san rafael | F5: guacima | G5: siquiares | H5: intercambio atenas | I5: atenas | J5: intercambio pozon | K5: pozon
B6: Tarifa de vehículos livinos por caseta | C6: 370 | D6: 180 | E6: 560 | F6: 420 | G6: 440 | H6: 370 | I6: 740 | J6: 180 | K6: 560
B7: enero | C7: 2235470 | D7: 224327 | E7: 1403758 | F7: 53083 | G7: 230152 | H7: 98205 | I7: 1365084 | J7: 54898 | K7: 954816
B8: febrero | C8: 2189748 | D8: 197065 | E8: 1385482 | F8: 48394 | G8: 204294 | H8: 94895 | I8: 1126174 | J8: 48120 | K8: 787471
B9: marzo | C9: 2414440 | D9: 225433 | E9: 1468219 | F9: 53165 | G9: 222237 | H9: 101052 | I9: 1225208 | J9: 54884 | K9: 848531
B10: abril | C10: 2032487 | D10: 214846 | E10: 1297907 | F10: 47809 | G10: 207969 | H10: 84279 | I10: 1245173 | J10: 54408 | K10: 871303
B11: mayo | C11: 2215575 | D11: 232294 | E11: 1307451 | F11: 49181 | G11: 206059 | H11: 94229 | I11: 1113244 | J11: 48743 | K11: 768279
B12: junio | C12: 2202226 | D12: 236334 | E12: 1239827 | F12: 51565 | G12: 216829 | H12: 97851 | I12: 1101562 | J12: 49222 | K12: 760092
B13: julio | C13: 2159296 | D13: 242058 | E13: 1255180 | F13: 52255 | G13: 229395 | H13: 93757 | I13: 1264137 | J13: 53425 | K13: 870453
B14: agosto | C14: 2203276 | D14: 240095 | E14: 1240664 | F14: 51296 | G14: 225544 | H14: 97166 | I14: 1141830 | J14: 50739 | K14: 786956
B15: septiembre | C15: 2087276 | D15: 230298 | E15: 1179363 | F15: 47447 | G15: 221192 | H15: 93100 | I15: 1098104 | J15: 46300 | K15: 758684
B16: octubre | C16: 2166398 | D16: 237891 | E16: 1208865 | F16: 48549 | G16: 258689 | H16: 96901 | I16: 1210704 | J16: 46432 | K16: 861776
B17: noviembre | C17: 2231507 | D17: 244775 | E17: 1304033 | F17: 53035 | G17: 249226 | H17: 99410 | I17: 1201526 | J17: 51346 | K17: 842615
B18: diciembre | C18: 2221353 | D18: 250820 | E18: 1350322 | F18: 59407 | G18: 261748 | H18: 102500 | I18: 1335575 | J18: 57935 | K18: 942992
B19: Casetas | C19: escazú | D19: ciudad colón | E19: san rafael | F19: guacima | G19: siquiares | H19: intercambio atenas | I19: atenas | J19: intercambio pozon | K19: pozon | L19: Total al mes
A20: De acuerdo al CNC, el 90 % de los ingresos de la vía provienen de los vehículos livianos. Estos ingresos están en colones | B20: enero | C20: =C7*0.9/0.0018 -> 1117735000 | D20: =D7*0.9/0.0018 -> 112163500 | E20: 701879000 | F20: 26541500 | G20: 115076000 | H20: 49102500 | I20: 682542000 | J20: 27449000 | K20: 477408000 | L20: =SUM(C20:K20) -> 3309896500
B21: febrero | C21: =C8*0.9/0.0018 -> 1094874000 | D21: 98532500 | E21: 692741000 | F21: 24197000 | G21: 102147000 | H21: 47447500 | I21: 563087000 | J21: 24060000 | K21: 393735500 | L21: =SUM(C21:K21) -> 3040821500
B22: marzo | C22: =C9*0.9/0.0018 -> 1207220000 | D22: 112716500 | E22: 734109500 | F22: 26582500 | G22: 111118500 | H22: 50526000 | I22: 612604000 | J22: 27442000 | K22: 424265500 | L22: 3306584500
B23: abril | C23: =C10*0.9/0.0018 -> 1016243500 | D23: 107423000 | E23: 648953500 | F23: 23904500 | G23: 103984500 | H23: 42139500 | I23: 622586500 | J23: 27204000 | K23: 435651500 | L23: 3028090500
B24: mayo | C24: =C11*0.9/0.0018 -> 1107787500 | D24: 116147000 | E24: 653725500 | F24: 24590500 | G24: 103029500 | H24: 47114500 | I24: 556622000 | J24: 24371500 | K24: 384139500 | L24: 3017527500
B25: junio | C25: =C12*0.9/0.0018 -> 1101113000 | D25: 118167000 | E25: 619913500 | F25: 25782500 | G25: 108414500 | H25: 48925500 | I25: 550781000 | J25: 24611000 | K25: 380046000 | L25: 2977754000
B26: julio | C26: =C13*0.9/0.0018 -> 1079648000 | D26: 121029000 | E26: 627590000 | F26: 26127500 | G26: 114697500 | H26: 46878500 | I26: 632068500 | J26: 26712500 | K26: 435226500 | L26: 3109978000
B27: agosto | C27: =C14*0.9/0.0018 -> 1101638000 | D27: 120047500 | E27: 620332000 | F27: 25648000 | G27: 112772000 | H27: 48583000 | I27: 570915000 | J27: 25369500 | K27: 393478000 | L27: 3018783000
B28: septiembre | C28: =C15*0.9/0.0018 -> 1043638000 | D28: 115149000 | E28: 589681500 | F28: 23723500 | G28: 110596000 | H28: 46550000 | I28: 549052000 | J28: 23150000 | K28: 379342000 | L28: 2880882000
B29: octubre | C29: =C16*0.9/0.0018 -> 1083199000 | D29: 118945500 | E29: 604432500 | F29: 24274500 | G29: 129344500 | H29: 48450500 | I29: 605352000 | J29: 23216000 | K29: 430888000 | L29: 3068102500
B30: noviembre | C30: =C17*0.9/0.0018 -> 1115753500 | D30: 122387500 | E30: 652016500 | F30: 26517500 | G30: 124613000 | H30: 49705000 | I30: 600763000 | J30: 25673000 | K30: 421307500 | L30: 3138736500
B31: diciembre | C31: =C18*0.9/0.0018 -> 1110676500 | D31: 125410000 | E31: 675161000 | F31: 29703500 | G31: 130874000 | H31: 51250000 | I31: 667787500 | J31: 28967500 | K31: 471496000 | L31: 3291326000
B32: Cantidad de autos livianos
C33: escazú | D33: ciudad colón | E33: san rafael | F33: guacima | G33: siquiares | H33: intercambio atenas | I33: atenas | J33: intercambio pozon | K33: pozon
A34: Se dividieron los ingresos por la tarifa de cada caseta para conocer la cantidad de vehiculos ligeros que cruzaron al mes por cada caseta | B34: enero | C34: =C20/$C$6 -> 3020905.405 | D34: =D20/$D$6 -> 623130.5556 | E34: =E20/$E$6 -> 1253355.357 | F34: =F20/$F$6 -> 63194.04762 | G34: =G20/$G$6 -> 261536.3636 | H34: =H20/$H$6 -> 132709.4595 | I34: =I20/$I$6 -> 922354.0541 | J34: =J20/$J$6 -> 152494.4444 | K34: =K20/$K$6 -> 852514.2857
B35: febrero | C35: 2959118.919 | D35: 547402.7778 | E35: 1237037.5 | F35: 57611.90476 | G35: 232152.2727 | H35: 128236.4865 | I35: 760928.3784 | J35: 133666.6667 | K35: 703099.1071
B36: marzo | C36: 3262756.757 | D36: 626202.7778 | E36: 1310909.821 | F36: 63291.66667 | G36: 252542.0455 | H36: 136556.7568 | I36: 827843.2432 | J36: 152455.5556 | K36: 757616.9643
B37: abril | C37: 2746604.054 | D37: 596794.4444 | E37: 1158845.536 | F37: 56915.47619 | G37: 236328.4091 | H37: 113890.5405 | I37: 841333.1081 | J37: 151133.3333 | K37: 777949.1071
B38: mayo | C38: 2994020.27 | D38: 645261.1111 | E38: 1167366.964 | F38: 58548.80952 | G38: 234157.9545 | H38: 127336.4865 | I38: 752191.8919 | J38: 135397.2222 | K38: 685963.3929
B39: junio | C39: 2975981.081 | D39: 656483.3333 | E39: 1106988.393 | F39: 61386.90476 | G39: 246396.5909 | H39: 132231.0811 | I39: 744298.6486 | J39: 136727.7778 | K39: 678653.5714
B40: julio | C40: 2917967.568 | D40: 672383.3333 | E40: 1120696.429 | F40: 62208.33333 | G40: 260676.1364 | H40: 126698.6486 | I40: 854146.6216 | J40: 148402.7778 | K40: 777190.1786
B41: agosto | C41: 2977400 | D41: 666930.5556 | E41: 1107735.714 | F41: 61066.66667 | G41: 256300 | H41: 131305.4054 | I41: 771506.7568 | J41: 140941.6667 | K41: 702639.2857
B42: septiembre | C42: 2820643.243 | D42: 639716.6667 | E42: 1053002.679 | F42: 56484.52381 | G42: 251354.5455 | H42: 125810.8108 | I42: 741962.1622 | J42: 128611.1111 | K42: 677396.4286
B43: octubre | C43: 2927564.865 | D43: 660808.3333 | E43: 1079343.75 | F43: 57796.42857 | G43: 293964.7727 | H43: 130947.2973 | I43: 818043.2432 | J43: 128977.7778 | K43: 769442.8571
B44: noviembre | C44: 3015550 | D44: 679930.5556 | E44: 1164315.179 | F44: 63136.90476 | G44: 283211.3636 | H44: 134337.8378 | I44: 811841.8919 | J44: 142627.7778 | K44: 752334.8214
B45: diciembre | C45: 3001828.378 | D45: 696722.2222 | E45: 1205644.643 | F45: 70722.61905 | G45: 297440.9091 | H45: 138513.5135 | I45: 902415.5405 | J45: 160930.5556 | K45: 841957.1429
G46: UK | H46: ZMVM | I46: US-transport | M46: Estudios utilizados para calcular la cantidad de autos que viajan en hora pico
A47: Elasticidad precio-demanda | B47: 70% hora pico | C47: 0.34 | E47: Cantidad de autos que viajan por hora del día | F47: hora pico | G47: 0.52 | H47: =52.23/100 -> 0.5223 | I47: 0.47 | M47: UK | N47: HPM (6-9:59) y HPT(4:7:59)https://www.gov.uk/government/statistical-data-sets/nts05-trips
B48: 30% hora valle | C48: 0.1 | F48: hora valle | G48: =1-G47 -> 0.48 | H48: =1-H47 -> 0.4777 | I48: =1-I47 -> 0.53 | M48: ZMVM | N48: HPM (6-9:59) y HPT(4:7:59) Encuesta Origen Destino 2017
M49: US | N49: HPM (6-8:59) y HPT(4-6:59) https://nhts.ornl.gov/assets/2017_nhts_summary_travel_trends.pdf
A50: Tarifas de congestión propuestas | B50: Hora del día | C50: escazú | D50: ciudad colón | E50: san rafael | F50: guacima | G50: siquiares | H50: intercambio atenas | I50: atenas | J50: intercambio pozon | K50: pozon
B51: Hora pico | C51: =C6+(C6/2) -> 555 | D51: =D6+(D6/2) -> 270 | E51: 840 | F51: 630 | G51: 660 | H51: 555 | I51: 1110 | J51: 270 | K51: 840
B52: Hora valle | C52: =C6-C6*0.1 -> 333 | D52: =D6-D6*0.1 -> 162 | E52: 504 | F52: 378 | G52: 396 | H52: 333 | I52: 666 | J52: 162 | K52: 504
C53: =(C51-C6)/C6 -> 0.5 | D53: 0.5 | E53: 0.5 | F53: 0.5 | G53: 0.5 | H53: 0.5 | I53: 0.5 | J53: 0.5 | K53: 0.5
C54: =(C52-C6)/C6 -> -0.1 | D54: =(D52-D6)/D6 -> -0.1 | E54: -0.1 | F54: -0.1 | G54: -0.1 | H54: -0.1 | I54: -0.1 | J54: -0.1 | K54: -0.1
B55: Cambio % demanda | C55: =C53*$C$47 -> 0.17 | D55: =D53*$C$47 -> 0.17 | E55: 0.17 | F55: 0.17 | G55: 0.17 | H55: 0.17 | I55: 0.17 | J55: 0.17 | K55: 0.17
C56: =C54*$C$48 -> -0.01 | D56: =D54*$C$48 -> -0.01 | E56: -0.01 | F56: -0.01 | G56: -0.01 | H56: -0.01 | I56: -0.01 | J56: -0.01 | K56: -0.01
C57: Autos que podrían cruzar en Hora pico | L57: Cantidad de autos que podrían cruzar en hora valle por cada una de las casetas | M57: Autos que podrían cruzar en Hora valle
A58: Cantidad de autos que podrían cruzar en hora pico por cada una de las casetas | B58: enero | C58: =(C34*$G$47)+(-$C$55*(C34*$G$47)) -> 1303822.773 | D58: =(D34*$G$47)+(-$C$55*(D34*$G$47)) -> 268943.1478 | E58: 540948.1721 | F58: 27274.55095 | G58: 112879.0945 | H58: 57277.4027 | I58: 398088.0097 | J58: 65816.60222 | K58: 367945.1657 | M58: =(C34*$G$48)+(-$C$56*(C34*$G$48)) -> 1464534.941 | N58: =(D34*$G$48)+(-$C$56*(D34*$G$48)) -> 302093.6933 | O58: 607626.6771 | P58: 30636.47429 | Q58: 126792.8291 | R58: 64337.54595 | S58: 447157.2454 | T58: 73929.30667 | U58: 413298.9257
B59: febrero | C59: =(C35*$G$47)+(-$C$55*(C35*$G$47)) -> 1277155.725 | D59: 236259.0389 | E59: 533905.385 | F59: 24865.2981 | G59: 100196.9209 | H59: 55346.86757 | I59: 328416.6881 | J59: 57690.53333 | K59: 303457.5746 | M59: 1434580.852 | N59: =(D35*$G$48)+(-$C$56*(D35*$G$48)) -> 265380.8667 | O59: =(E35*$G$48)+(-$C$56*(E35*$G$48)) -> 599715.78 | P59: =(F35*$G$48)+(-$C$56*(F35*$G$48)) -> 27930.25143 | Q59: =(G35*$G$48)+(-$C$56*(G35*$G$48)) -> 112547.4218 | R59: =(H35*$G$48)+(-$C$56*(H35*$G$48)) -> 62169.04865 | S59: =(I35*$G$48)+(-$C$56*(I35*$G$48)) -> 368898.0778 | T59: =(J35*$G$48)+(-$C$56*(J35*$G$48)) -> 64801.6 | U59: =(K35*$G$48)+(-$C$56*(K35*$G$48)) -> 340862.4471
B60: marzo | C60: =(C36*$G$47)+(-$C$55*(C36*$G$47)) -> 1408205.816 | D60: 270269.1189 | E60: 565788.6789 | F60: 27316.68333 | G60: 108997.1468 | H60: 58937.89622 | I60: 357297.1438 | J60: 65799.81778 | K60: 326987.4818 | M60: 1581784.476 | N60: 303583.1067 | O60: 635529.0814 | P60: 30683.8 | Q60: 122432.3836 | R60: 66202.71568 | S60: 401338.4043 | T60: 73910.45333 | U60: 367292.7043
B61: abril | C61: =(C37*$G$47)+(-$C$55*(C37*$G$47)) -> 1185434.31 | D61: 257576.4822 | E61: 500157.7332 | F61: 24564.71952 | G61: 101999.3414 | H61: 49155.1573 | I61: 363119.3695 | J61: 65229.14667 | K61: 335762.8346 | M61: 1331553.645 | N61: 289325.9467 | O61: 561808.3157 | P61: 27592.62286 | Q61: 114572.0127 | R61: 55214.13405 | S61: 407878.2908 | T61: 73269.44 | U61: 377149.7271
B62: mayo | C62: =(C38*$G$47)+(-$C$55*(C38*$G$47)) -> 1292219.149 | D62: 278494.6956 | E62: 503835.5818 | F62: 25269.66619 | G62: 101062.5732 | H62: 54958.42757 | I62: 324646.0205 | J62: 58437.44111 | K62: 296061.8004 | M62: 1451501.027 | N62: 312822.5867 | O62: 565939.5043 | P62: 28384.46286 | Q62: 113519.7764 | R62: 61732.72865 | S62: 364662.6292 | T62: 65640.57333 | U62: 332555.0529
B63: junio | C63: =(C39*$G$47)+(-$C$55*(C39*$G$47)) -> 1284433.435 | D63: 283338.2067 | E63: 477776.1904 | F63: 26494.5881 | G63: 106344.7686 | H63: 57070.93459 | I63: 321239.2968 | J63: 59011.70889 | K63: 292906.8814 | M63: 1442755.628 | N63: 318263.12 | O63: 536667.9729 | P63: 29760.37143 | Q63: 119453.0673 | R63: 64105.62811 | S63: 360835.9849 | T63: 66285.62667 | U63: 329011.2514
B64: julio | C64: =(C40*$G$47)+(-$C$55*(C40*$G$47)) -> 1259394.802 | D64: 290200.6467 | E64: 483692.5786 | F64: 26849.11667 | G64: 112507.8205 | H64: 54683.13676 | I64: 368649.6819 | J64: 64050.63889 | K64: 335435.2811 | M64: 1414630.677 | N64: 325971.44 | O64: 543313.6286 | P64: 30158.6 | Q64: 126375.7909 | R64: 61423.50486 | S64: 414090.2822 | T64: 71945.66667 | U64: 376781.7986
B65: agosto | C65: =(C41*$G$47)+(-$C$55*(C41*$G$47)) -> 1285045.84 | D65: 287847.2278 | E65: 478098.7343 | F65: 26356.37333 | G65: 110619.08 | H65: 56671.41297 | I65: 332982.3162 | J65: 60830.42333 | K65: 303259.1157 | M65: 1443443.52 | N65: 323327.9333 | O65: 537030.2743 | P65: 29605.12 | Q65: 124254.24 | R65: 63656.86054 | S65: 374026.4757 | T65: 68328.52 | U65: 340639.5257
B66: septiembre | C66: =(C42*$G$47)+(-$C$55*(C42*$G$47)) -> 1217389.624 | D66: 276101.7133 | E66: 454475.9561 | F66: 24378.72048 | G66: 108484.6218 | H66: 54299.94595 | I66: 320230.8692 | J66: 55508.55556 | K66: 292364.2986 | M66: 1367447.844 | N66: 310134.64 | O66: 510495.6986 | P66: 27383.69714 | Q66: 121856.6836 | R66: 60993.08108 | S66: 359703.2562 | T66: 62350.66667 | U66: 328401.7886
B67: octubre | C67: =(C43*$G$47)+(-$C$55*(C43*$G$47)) -> 1263536.996 | D67: 285204.8767 | E67: 465844.7625 | F67: 24944.93857 | G67: 126875.1959 | H67: 56516.85351 | I67: 353067.4638 | J67: 55666.80889 | K67: 332091.5371 | M67: 1419283.446 | N67: 320359.88 | O67: 523265.85 | P67: 28019.70857 | Q67: 142514.1218 | R67: 63483.24973 | S67: 396587.3643 | T67: 62528.42667 | U67: 373025.8971
B68: noviembre | C68: =(C44*$G$47)+(-$C$55*(C44*$G$47)) -> 1301511.38 | D68: 293458.0278 | E68: 502518.4311 | F68: 27249.8881 | G68: 122234.0245 | H68: 57980.21081 | I68: 350390.9605 | J68: 61558.14889 | K68: 324707.7089 | M68: 1461938.64 | N68: 329630.3333 | O68: 564459.9986 | P68: 30608.77143 | Q68: 137300.8691 | R68: 65126.98378 | S68: 393580.9492 | T68: 69145.94667 | U68: 364731.9214
B69: diciembre | C69: =(C45*$G$47)+(-$C$55*(C45*$G$47)) -> 1295589.128 | D69: 300705.3111 | E69: 520356.2279 | F69: 30523.88238 | G69: 128375.4964 | H69: 59782.43243 | I69: 389482.5473 | J69: 69457.62778 | K69: 363388.7029 | M69: 1455286.398 | N69: 337770.9333 | O69: 584496.5229 | P69: 34286.32571 | Q69: 144199.3527 | R69: 67151.35135 | S69: 437491.0541 | T69: 78019.13333 | U69: 408180.8229
M70: =SUM(M58:U69) -> 40302557.7
C71: Ingresos por tarifas de congestión
A72: Se multiplicó la cantidad de autos que podrían cruzar en hora pico por la tarifa de hora pico más la cantidad de autos que podrían cruzar en hora valle por la tarifa de hora valle | B72: enero | C72: =C58*$C$51+M58*$C$52 -> 1211311774 | D72: =D58*$D$51+N58*$D$52 -> 121553828.2 | E72: =E58*$E$51+O58*$E$52 -> 760640309.9 | F72: =F58*$F$51+P58*$F$52 -> 28763554.38 | G72: =G58*$G$51+Q58*$G$52 -> 124710162.7 | H72: =H58*$H$51+R58*$H$52 -> 53213361.3 | I72: =I58*$I$51+S58*$I$52 -> 739684416.2 | J72: =J58*$J$51+T58*$J$52 -> 29747030.28 | K72: =K58*$K$51+U58*$K$52 -> 517376597.8
B73: febrero | C73: =C59*$C$51+M59*$C$52 -> 1186536851 | D73: =D59*$D$51+N59*$D$52 -> 106781640.9 | E73: =E59*$E$51+O59*$E$52 -> 750737276.5 | F73: =F59*$F$51+P59*$F$52 -> 26222772.84 | G73: =G59*$G$51+Q59*$G$52 -> 110698746.8 | H73: =H59*$H$51+R59*$H$52 -> 51419804.7 | I73: =I59*$I$51+S59*$I$52 -> 610228643.6 | J73: =J59*$J$51+T59*$J$52 -> 26074303.2 | K73: =K59*$K$51+U59*$K$52 -> 426699036.1
B74: marzo | C74: 1308288458 | D74: 122153125.4 | E74: 795569147.3 | F74: 28807986.9 | G74: 120421340.8 | H74: 54756036.72 | I74: 663891206.9 | J74: 29739444.24 | K74: 459785007.7
B75: abril | C75: 1101323406 | D75: 116416453.6 | E75: 703283887 | F75: 25905784.74 | G75: 112690082.3 | H75: 45667418.94 | I75: 674709441.8 | J75: 29481518.88 | K75: 472124243.6
B76: mayo | C76: 1200531470 | D76: 125870826.8 | E76: 708455398.9 | F76: 26649216.66 | G76: 111655129.7 | H76: 51058925.94 | I76: 603222393.8 | J76: 26411881.98 | K76: 416299658.9
B77: junio | C77: 1193298180 | D77: 128059941.2 | E77: 671812658.2 | F77: 27941010.9 | G77: 117490961.9 | H77: 53021542.86 | I77: 596892385.3 | J77: 26671432.92 | K77: 411863451.1
B78: julio | C78: 1170036131 | D78: 131161547.9 | E78: 680131834.8 | F78: 28314894.3 | G78: 124299974.7 | H78: 50803168.02 | I78: 684985274.8 | J78: 28948870.5 | K78: 471663662.6
B79: agosto | C79: 1193867133 | D79: 130097876.7 | E79: 672266195 | F79: 27795250.56 | G79: 122213271.8 | H79: 52650368.76 | I79: 618712003.8 | J79: 27493434.54 | K79: 426419978.2
B80: septiembre | C80: 1131011373 | D80: 124789274.3 | E80: 639049635.2 | F80: 25709631.42 | G80: 119855097.1 | H80: 50447166 | I80: 595018633.4 | J80: 25088118 | K80: 411100512.2
B81: octubre | C81: 1173884420 | D81: 128903617.3 | E81: 655035588.9 | F81: 26306761.14 | G81: 140173221.5 | H81: 52506775.86 | I81: 656032069.4 | J81: 25159643.52 | K81: 466961943.4
B82: noviembre | C82: 1209164383 | D82: 132633781.5 | E82: 706603321.4 | F82: 28737545.1 | G82: 135045600.4 | H82: 53866302.6 | I82: 651058878.4 | J82: 27822343.56 | K82: 456579363.9
B83: diciembre | C83: 1203662337 | D83: 135909325.2 | E83: 731685478.9 | F83: 32190277.02 | G83: 141830771.3 | H83: 55540650 | I83: 723694669.5 | J83: 31392659.1 | K83: 510969645.1
C84: Ingresos extra por tarifas de congestión (colones)
A85: Ingresos extra generados por la aplicación de tarifas de congestión en colones | B85: enero | C85: =C72-C20 -> 93576774.2 | D85: =D72-D20 -> 9390328.22 | E85: 58761309.88 | F85: 2222054.38 | G85: 9634162.72 | H85: 4110861.3 | I85: 57142416.24 | J85: 2298030.28 | K85: 39968597.76
B86: febrero | C86: 91662851.28 | D86: =D73-D21 -> 8249140.9 | E86: 57996276.52 | F86: 2025772.84 | G86: 8551746.84 | H86: 3972304.7 | I86: 47141643.64 | J86: 2014303.2 | K86: 32963536.06
B87: marzo | C87: 101068458.4 | D87: 9436625.38 | E87: 61459647.34 | F87: 2225486.9 | G87: 9302840.82 | H87: 4230036.72 | I87: 51287206.88 | J87: 2297444.24 | K87: 35519507.66
B88: abril | C88: 85079905.82 | D88: 8993453.56 | E88: 54330387.02 | F88: 2001284.74 | G88: 8705582.34 | H88: 3527918.94 | I88: 52122941.78 | J88: 2277518.88 | K88: 36472743.58
B89: mayo | C89: 92743969.5 | D89: 9723826.84 | E89: 54729898.86 | F89: 2058716.66 | G89: 8625629.74 | H89: 3944425.94 | I89: 46600393.84 | J89: 2040381.98 | K89: 32160158.94
B90: junio | C90: 92185180.36 | D90: 9892941.24 | E90: 51899158.22 | F90: 2158510.9 | G90: 9076461.94 | H90: 4096042.86 | I90: 46111385.32 | J90: 2060432.92 | K90: 31817451.12
B91: julio | C91: 90388130.56 | D91: 10132547.88 | E91: 52541834.8 | F91: 2187394.3 | G91: 9602474.7 | H91: 3924668.02 | I91: 52916774.82 | J91: 2236370.5 | K91: 36437162.58
B92: agosto | C92: 92229133.36 | D92: 10050376.7 | E92: 51934195.04 | F92: 2147250.56 | G92: 9441271.84 | H92: 4067368.76 | I92: 47797003.8 | J92: 2123934.54 | K92: 32941978.16
B93: septiembre | C93: 87373373.36 | D93: 9640274.28 | E93: 49368135.18 | F93: 1986131.42 | G93: 9259097.12 | H93: 3897166 | I93: 45966633.44 | J93: 1938118 | K93: 31758512.24
B94: octubre | C94: 90685420.28 | D94: 9958117.26 | E94: 50603088.9 | F94: 2032261.14 | G94: 10828721.54 | H94: 4056275.86 | I94: 50680069.44 | J94: 1943643.52 | K94: 36073943.36
B95: noviembre | C95: 93410883.02 | D95: 10246281.5 | E95: 54586821.38 | F95: 2220045.1 | G95: 10432600.36 | H95: 4161302.6 | I95: 50295878.36 | J95: 2149343.56 | K95: 35271863.9
B96: diciembre | C96: 92985836.58 | D96: 10499325.2 | E96: 56524478.92 | F96: 2486777.02 | G96: 10956771.28 | H96: 4290650 | I96: 55907169.5 | J96: 2425159.1 | K96: 39473645.12
C97: Ingresos extra por tarifas de congestión (dólares)
C98: escazú | D98: ciudad colón | E98: san rafael | F98: guacima | G98: siquiares | H98: intercambio atenas | I98: atenas | J98: intercambio pozon | K98: pozon
A99: Ingresos extra generados por la aplicación de tarifas de congestión en dólares | B99: enero | C99: =C85*0.0018 -> 168438.1936 | D99: =D85*0.0018 -> 16902.5908 | E99: 105770.3578 | F99: 3999.697884 | G99: 17341.4929 | H99: 7399.55034 | I99: 102856.3492 | J99: 4136.454504 | K99: 71943.47597
B100: febrero | C100: =C86*0.0018 -> 164993.1323 | D100: 14848.45362 | E100: 104393.2977 | F100: 3646.391112 | G100: 15393.14431 | H100: 7150.14846 | I100: 84854.95855 | J100: 3625.74576 | K100: 59334.36491
B101: marzo | C101: =C87*0.0018 -> 181923.2251 | D101: 16985.92568 | E101: 110627.3652 | F101: 4005.87642 | G101: 16745.11348 | H101: 7614.066096 | I101: 92316.97238 | J101: 4135.399632 | K101: 63935.11379
B102: abril | C102: =C88*0.0018 -> 153143.8305 | D102: 16188.21641 | E102: 97794.69664 | F102: 3602.312532 | G102: 15670.04821 | H102: 6350.254092 | I102: 93821.2952 | J102: 4099.533984 | K102: 65650.93844
B103: mayo | C103: =C89*0.0018 -> 166939.1451 | D103: 17502.88831 | E103: 98513.81795 | F103: 3705.689988 | G103: 15526.13353 | H103: 7099.966692 | I103: 83880.70891 | J103: 3672.687564 | K103: 57888.28609
B104: junio | C104: =C90*0.0018 -> 165933.3246 | D104: 17807.29423 | E104: 93418.4848 | F104: 3885.31962 | G104: 16337.63149 | H104: 7372.877148 | I104: 83000.49358 | J104: 3708.779256 | K104: 57271.41202
B105: julio | C105: =C91*0.0018 -> 162698.635 | D105: 18238.58618 | E105: 94575.30264 | F105: 3937.30974 | G105: 17284.45446 | H105: 7064.402436 | I105: 95250.19468 | J105: 4025.4669 | K105: 65586.89264
B106: agosto | C106: =C92*0.0018 -> 166012.44 | D106: 18090.67806 | E106: 93481.55107 | F106: 3865.051008 | G106: 16994.28931 | H106: 7321.263768 | I106: 86034.60684 | J106: 3823.082172 | K106: 59295.56069
B107: septiembre | C107: =C93*0.0018 -> 157272.072 | D107: 17352.4937 | E107: 88862.64332 | F107: 3575.036556 | G107: 16666.37482 | H107: 7014.8988 | I107: 82739.94019 | J107: 3488.6124 | K107: 57165.32203
B108: octubre | C108: =C94*0.0018 -> 163233.7565 | D108: 17924.61107 | E108: 91085.56002 | F108: 3658.070052 | G108: 19491.69877 | H108: 7301.296548 | I108: 91224.12499 | J108: 3498.558336 | K108: 64933.09805
B109: noviembre | C109: =C95*0.0018 -> 168139.5894 | D109: 18443.3067 | E109: 98256.27848 | F109: 3996.08118 | G109: 18778.68065 | H109: 7490.34468 | I109: 90532.58105 | J109: 3868.818408 | K109: 63489.35502
B110: diciembre | C110: =C96*0.0018 -> 167374.5058 | D110: =D96*0.0018 -> 18898.78536 | E110: 101744.0621 | F110: 4476.198636 | G110: 19722.1883 | H110: 7723.17 | I110: 100632.9051 | J110: 4365.28638 | K110: 71052.56122 | L110: Ingresos extra al año en dólares
B111: Total | C111: =SUM(C99:C110) -> 1986101.85 | D111: =SUM(D99:D110) -> 209183.8301 | E111: 1178523.418 | F111: 46353.03473 | G111: 205951.2502 | H111: 86902.23906 | I111: 1087145.131 | J111: 46448.4253 | K111: 757546.3809 | L111: =SUM(C111:K111) -> 5604155.559

Sheet Parquimetros
A2: Información sobre cajones de estacionamientos y parámetros utilizados | B2: Muncipalidad | C2: Número de cajones de estacionamiento | D2: Número de cajones de estacionamiento (motos) | E2: Costo del estacionómetro por hora (CRC) | F2: Ingresos al año por estacionómetros (CRC) | G2: Uso al año en horas | H2: Uso promedio (h) por cajon | I2: Rotación al día (horario que funciona) | J2: Elasticidad precio-demanda | K2: Cambio precio
B3: Liberia | C3: 1000 | D3: 160 | E3: 700 | J3: 0.39 | K3: 0.5
B4: San José | C4: 3000 | E4: 840 | F4: =637.76*1000000 -> 637760000 | G4: =F4/E4 -> 759238.0952 | H4: =G4/C4 -> 253.0793651 | I4: =H4/130 -> 1.946764347
B5: San José (Escenario 1) | C5: 4000 | E5: 840 | F5: =G5*E5 -> 850346666.7 | G5: =H5*C5 -> 1012317.46 | H5: =H4 -> 253.0793651 | I5: =I4 -> 1.946764347 | J5: =K3*J3 -> 0.195
A7: Considerando la elasticidad precio de la demanda se estimaron los cambios en el ingreso de San José, CR | B7: Cambio en el precio | D7: Cambio en la demanda | E7: Ingresos por cambios en precio y demanda | F7: Ingresos extra generados por incrementos en tarifas | J7: Ingresos extra generados por incrementos en cajones de estacionamiento
B8: =(B9-$B$14/7) -> 0.07142857143 | C8: 0.1 | D8: =B8*$K$3 -> 0.03571428571 | E8: =($G$4+(-D8*$G$4))*($E$4+$E$4*B8) -> 658910204.1 | F8: =(MAX(E8:E26)-F4)*0.0018 -> 143496 | G8: <- Tarifas | I8: Cantidad-> | J8: =(F5-F4)*0.0018 -> 382656
B9: =(B10-$B$14/7) -> 0.1428571429 | C9: 0.15 | D9: 0.07142857143 | E9: =($G$4+(-D9*$G$4))*($E$4+$E$4*B9) -> 676806530.6
B10: =(B11-$B$14/7) -> 0.2142857143 | C10: 0.2 | D10: 0.1071428571 | E10: =($G$4+(-D10*$G$4))*($E$4+$E$4*B10) -> 691448979.6
B11: 0.2857142857 | C11: 0.25 | D11: 0.1428571429 | E11: 702837551
B12: 0.3571428571 | C12: 0.3 | D12: 0.1785714286 | E12: 710972244.9
B13: 0.4285714286 | C13: 0.35 | D13: 0.2142857143 | E13: 715853061.2
B14: 0.5 | C14: 0.4 | D14: 0.25 | E14: =($G$4+(-D14*$G$4))*($E$4+$E$4*B14) -> 717480000
B15: =(B14+$B$14/7) -> 0.5714285714 | C15: 0.45 | D15: 0.2857142857 | E15: =($G$4+(-D15*$G$4))*($E$4+$E$4*B15) -> 715853061.2 | F15: =E4+B14*E4 -> 1260
B16: =(B15+$B$14/7) -> 0.6428571429 | C16: 0.5 | D16: 0.3214285714 | E16: 710972244.9
B17: 0.7142857143 | C17: 0.55 | D17: 0.3571428571 | E17: 702837551
B18: 0.7857142857 | C18: 0.6 | D18: 0.3928571429 | E18: 691448979.6
B19: =(B18+$B$14/7) -> 0.8571428571 | C19: 0.65 | D19: 0.4285714286 | E19: =($G$4+(-D19*$G$4))*($E$4+$E$4*B19) -> 676806530.6 | F19: =G4+(-D19*G4) -> 433850.3401 | G19: =E4+E4*B19 -> 1560
B20: 0.9285714286 | C20: 0.7 | D20: 0.4642857143 | E20: =($G$4+(-D20*$G$4))*($E$4+$E$4*B20) -> 658910204.1
B21: 1 | C21: 0.75 | D21: 0.5 | E21: =($G$4+(-D21*$G$4))*($E$4+$E$4*B21) -> 637760000
B22: 1.071428571 | C22: 0.8 | D22: 0.5357142857 | E22: 613355918.4
B23: 1.142857143 | C23: 0.85 | D23: 0.5714285714 | E23: 585697959.2
B24: 1.214285714 | C24: 0.9 | D24: 0.6071428571 | E24: 554786122.4
B25: 1.285714286 | C25: 0.95 | D25: 0.6428571429 | E25: 520620408.2
B26: =(B25+$B$14/7) -> 1.357142857 | C26: 1 | D26: 0.6785714286 | E26: 483200816.3
A28: Estudios utilizados | B28: Título | C28: Parkin price elasticity | D28: Price elasticity of on-street parking demand—a case study from Seattle | E28: The price elasticity of parking: A meta-analysis
B29: Link | C29: https://www.q-park.com/blogs/newsitem/13740/parking-price-elasticity | D29: http://onlinepubs.trb.org/onlinepubs/conferences/2012/4thITM/Papers-A/0117-000111.pdf | E29: https://www.researchgate.net/publication/331443775_The_price_elasticity_of_parking_A_meta-analysis

Sheet Marchamos_auto
B1: Este impuesto es que no tiene ninguna relación con la capacidad de consumo de combustible de los diferentes vehículos, incluso vehículos con mayor capacidad de consumo de combustibles tienen un impuesto fijo en moneda local desde la creación de la ley en 1987, como es el caso de los autobuses o los camiones de carga. Más bien los vehículos de uso particular y de mayor cilindrada, pero más antigüedad, se benefician de una reducción paulatina del valor fiscal, en función de la fórmula que se aplica para ajustar estos valores en el tiempo, según lo dispone la propia ley
A2: Funcionamiento del Marchamo | B2: Valor autos | C2: Tasa | F2: Millones de colones | G2: Colones | H2: Dólares
B3: Hasta 310,000 | C3: 26200 | E3: Ingresos por Marchamo (2019) | F3: 240000 | G3: =F3*1000000 -> 240000000000 | H3: =I3 -> 455400000 | I3: =4554000*100 -> 455400000
B4: Sobre el exceso de 310,000 y hasta 1,220,000 | C4: 0.012
B5: Sobre el exceso de 1,220,000 y hasta 2,420,000 | C5: 0.015
B6: Sobre el exceso de 2,420,000 y hasta 3,650,000 | C6: 0.02
B7: Sobre el exceso de 3,650,000 y hasta 4,550,000 | C7: 0.025
B8: Sobre el exceso de 4,550,000 y hasta 5,460,000 | C8: 0.03
B9: Sobre el exceso de 5,460,000 | C9: 0.035
A12: Cálculos de distintos porcentajes dedicados a la Movilidad Urbana Sustentable | B12: Porcentaje etiquetado para MUS | C12: Recursos dedicados a MUS
B13: 0.5% | C13: 2277000
B14: 0.8% | C14: 3415500
B15: 1.0% | C15: 4554000
B16: 2.0% | C16: 9108000
B17: 3.0% | C17: 13662000

Sheet Gasolinas
A1: Información sobre el consumo de gasolina y el destino de los ingresos del estado | B1: Tipo de gasolina | C1: Litros consumidos | D1: Costo litro de combstible (USD) | E1: INGRESO (USD) | F1: Impuesto Único a los Combustibles | G1: Caja única del Estado. Ministerio de Hacienda | H1: CONAVI | I1: Muncipalidades | J1: Fondo Forestal | K1: Universidad de Costa Rica
D2: 1 | F2: =1/3 -> 0.3333333333 | G2: 0.486 | H2: 0.2175 | I2: 0.2225 | J2: 0.035 | K2: 0.01
C3: 1 | D3: =744*0.0018 -> 1.3392 | E3: =D3*C3 -> 1.3392 | F3: =E3*(1/3) -> 0.4464 | G3: =F3*$G$2 -> 0.2169504 | H3: =F3*$H$2 -> 0.097092 | J3: =F3*$J$2 -> 0.015624 | K3: =F3*$K$2 -> 0.004464
B4: Gasolina Plus + super | C4: 1295694000 | D4: =652*0.0018 -> 1.1736 | E4: =D4*C4 -> 1520626478 | F4: =E4*(1/3) -> 506875492.8 | G4: =F4*$G$2 -> 246341489.5 | H4: =F4*$H$2 -> 110245419.7 | I4: =F4*$I$2 -> 112779797.1 | J4: =F4*$J$2 -> 17740642.25 | K4: =F4*$K$2 -> 5068754.928
B5: Diesel | C5: 1233245000 | D5: =561*0.0018 -> 1.0098 | E5: =D5*C5 -> 1245330801 | F5: =E5*(1/3) -> 415110267 | G5: =F5*$G$2 -> 201743589.8 | H5: =F5*$H$2 -> 90286483.07 | I5: =F5*$I$2 -> 92362034.41 | J5: =F5*$J$2 -> 14528859.35 | K5: =F5*$K$2 -> 4151102.67
B6: Total | C6: =SUM(C4:C5) -> 2528939000 | E6: =SUM(E4:E5) -> 2765957279 | F6: =E6*(1/3) -> 921985759.8 | G6: =F6*$G$2 -> 448085079.3 | H6: =F6*$H$2 -> 200531902.8 | I6: 205141831.6 | J6: =F6*$J$2 -> 32269501.59 | K6: =F6*$K$2 -> 9219857.598
A8: Información relevante proveniente de la Ley N° 8114 de Simplificación y Eficiencia Tributarias. | B8: Un veintidós coma veinticinco por ciento (22,25%) a favor de las municipalidades, para la atención de la red vial cantonal, monto que será priorizado conforme a lo establecido en el plan vial de conservación y desarrollo (quinquenal) de cada municipalidad.
B9: Dicha red vial está compuesta por todos los caminos y calles bajo administración de los gobiernos locales, inventariados y georeferenciados como rutas cantonales por estas, y que constan en los registros oficiales del Ministerio Obras Públicas y Transportes (MOPT), así como por toda la infraestructura complementaria, siempre que se encuentre en terrenos de dominio público y cumpla los requisitos de ley. Asimismo, se considerarán como parte de la red vial cantonal las aceras, ciclovías, pasos, rutas peatonales, áreas verdes y de ornato, que se encuentran dentro del derecho de vía y demás elementos de infraestructura de seguridad vial entrelazadas a las calles locales y caminos cantonales, el señalamiento vertical y horizontal, los puentes y demás estructuras de drenaje y retención y las obras geotécnicas o de otra naturaleza asociadas con los caminos.
B10: La ejecución de dichos recursos se realizará, de preferencia, bajo la modalidad participativa de ejecución de obras. Conforme lo establece el Reglamento de esta Ley, el destino de los recursos lo propondrá, a cada concejo municipal, una junta vial cantonal o distrital, en su caso, nombrada por el mismo concejo, la cual estará integrada por representantes del gobierno local, el MOPT y la comunidad, por medio de convocatoria pública y abierta.
A13: Cálculos de distintos porcentajes dedicados a la Movilidad Urbana Sustentable | C13: USD | D13: Porcentaje etiquetado para MUS del ingreso que reciben las municipalidades | K13: =TEXT(D14,"0.0%") -> 1.0% | L13: =TEXT(E14,"0.0%") -> 2.0% | M13: =TEXT(F14,"0.0%") -> 3.0% | N13: =TEXT(G14,"0.0%") -> 4.0% | O13: =TEXT(H14,"0.0%") -> 5.0%
D14: 0.01 | E14: 0.02 | F14: 0.03 | G14: 0.04 | H14: 0.05
B15: El ingreso para las municipalidades es : | C15: =I6 -> 205141831.6 | D15: =$C$15*D14 -> 2051418.316 | E15: =$C$15*E14 -> 4102836.631 | F15: =$C$15*F14 -> 6154254.947 | G15: =$C$15*G14 -> 8205673.262 | H15: =$C$15*H14 -> 10257091.58 | J15: =C15/8 -> 25642728.94
A17: Costo de algunos proyectos realizados en San José, Costa Rica para fines ilustrativos | C17: colones (millones) | D17: colones | E17: USD (2018)
B18: Mantenimiento y construcción vial (San José CR) | C18: 1359.5 | D18: =C18*1000000 -> 1359500000 | E18: =D18*0.0018 -> 2447100 | F18: DE TODO LO QUE DEDICAN A MANTENIMIENTO
B19: Se construyen 50 obras viales en el cantón entre las cuales: -Construcción de aceras, -Cordón de caño, cunetas, -Gradas, -Rampas | C19: 103.2 | D19: =C19*1000000 -> 103200000 | E19: =D19*0.0018 -> 185760 | G19: =F20/13 -> 281630.7692
B20: 13 km ciclovía entre San José y Montes de Oca | C20: 113 | D20: =C20*1000000 -> 113000000 | E20: =D20*0.0018 -> 203400 | F20: =E20*18 -> 3661200 | G20: =E20/H6 -> 0.001014302449 | H20: =H6*0.01 -> 2005319.028
A22: Cantidad de proyectos similares a los de San José con distintios porcentajes dedicados a MUS | C22: Cantidad de proyectos similares que se podrían hacer con los ingresos etiquetados
C23: 0.01 | D23: 0.02 | E23: 0.03 | F23: 0.04 | G23: 0.05
B24: Ciclovías similares a la construida entre San José y Montes de Oca (13 km) | C24: =D15/$E$20 -> 10.08563577 | D24: =E15/$E$20 -> 20.17127154 | E24: 30.25690731 | F24: 40.34254308 | G24: 50.42817885
B25: 50 obras viales en el cantón entre las cuales: -Construcción de aceras, -Cordón de caño, cunetas, -Gradas, -Rampas | C25: =D15/$E$19 -> 11.04338025 | D25: =E15/$E$19 -> 22.0867605 | E25: 33.13014076 | F25: 44.17352101 | G25: 55.21690126

Sheet Marchamos_moto (hidden)
A1: Infomración necesaria
A2: Artículo 9. - Tarifas del Impuesto. Las tarifas del impuesto son progresivas, y se aplicarán de conformidad con los tramos de la tabla establecida en el inciso f), numeral 1) del artículo 9 de la Ley N° 7088 de 30 de noviembre de 1987.
A4: Motocicleta | B4: Monto del impuesto | C4: Monto en letras
A5: De hasta 90 cc | B5: ¢700,00 | C5: Setecientos colones
A6: Más de 90 cc y hasta 125 cc | B6: ¢1.500,00 | C6: Mil quinientos colones
A7: Más de 125 cc y hasta 200 cc | B7: ¢3.000,00 | C7: Tres mil colones
A8: Más de 200 cc y hasta 450 cc | B8: ¢8.000,00 | C8: Ocho mil colones
A9: Más de 450 cc | B9: ¢15.000,00 | C9: Quince mil colones
A11: Descuentos por año acumulable | B11: año
A12: 0.2 | B12: 1
A13: 0.1 | B13: 2
A14: 0.1 | B14: 3
A15: 0.1 | B15: 4 | R15: 0.000782122905 | S15: 0.001304347826 | T15: 0.002006688963 | U15: 0.00354767184 | V15: 0.004159954869
A16: 0.2 | B16: 5
F17: =A12 -> 0.2 | G17: =F17+A13 -> 0.3 | H17: =G17+A14 -> 0.4 | I17: =H17+A15 -> 0.5 | J17: =I17+A16 -> 0.7
E18: Impuesto a pagar los siguientes años | F18: año | K18: Porcentaje respecto del valor de la motocicleta | L18: año
A19: Supongamos una moto 2019 | B19: Precio | C19: Impuesto | D19: % respecto del valor | F19: 1 | G19: 2 | H19: 3 | I19: 4 | J19: 5 | L19: 1 | M19: 2 | N19: 3 | O19: 4 | P19: 5
A20: Crux-REV | B20: 895000 | C20: 700 | D20: =C20/B20 -> 0.000782122905 | F20: =C20-C20*$F$17 -> 560 | G20: =C20-C20*$G$17 -> 490 | H20: =C20-C20*$H$17 -> 420 | I20: =C20-C20*$I$17 -> 350 | J20: =C20-C20*$J$17 -> 210 | L20: =F20/B20 -> 0.000625698324 | M20: =G20/B20 -> 0.0005474860335 | N20: =H20/B20 -> 0.000469273743 | O20: =I20/B20 -> 0.0003910614525 | P20: =J20/B20 -> 0.0002346368715
A21: RAY ZR | B21: 1150000 | C21: 1500 | D21: =C21/B21 -> 0.001304347826 | F21: =C21-C21*$F$17 -> 1200 | G21: =C21-C21*$G$17 -> 1050 | H21: =C21-C21*$H$17 -> 900 | I21: =C21-C21*$I$17 -> 750 | J21: =C21-C21*$J$17 -> 450 | L21: =F21/B21 -> 0.001043478261 | M21: =G21/B21 -> 0.0009130434783 | N21: =H21/B21 -> 0.0007826086957 | O21: =I21/B21 -> 0.000652173913 | P21: =J21/B21 -> 0.0003913043478
A22: FZN 150 | B22: 1495000 | C22: 3000 | D22: =C22/B22 -> 0.002006688963 | F22: 2400 | G22: 2100 | H22: 1800 | I22: 1500 | J22: 900 | L22: 0.001605351171 | M22: 0.001404682274 | N22: 0.001204013378 | O22: 0.001003344482 | P22: 0.000602006689
A23: FZ 250 Fi | B23: 2255000 | C23: 8000 | D23: 0.00354767184 | F23: 6400 | G23: 5600 | H23: 4800 | I23: 4000 | J23: 2400 | L23: 0.002838137472 | M23: 0.002483370288 | N23: 0.002128603104 | O23: 0.00177383592 | P23: 0.001064301552
A24: YZF R6 | B24: 9670000 | C24: 15000 | D24: 0.001551189245 | F24: 12000 | G24: 10500 | H24: 9000 | I24: 7500 | J24: 4500 | L24: 0.001240951396 | M24: 0.001085832472 | N24: 0.0009307135471 | O24: 0.0007755946225 | P24: 0.0004653567735
F27: =A12 -> 0.2 | G27: =F27+A13 -> 0.3 | H27: =G27+A14 -> 0.4 | I27: =H27+A15 -> 0.5 | J27: =I27+A16 -> 0.7
E28: Impuesto a pagar los siguientes años | F28: año | K28: Porcentaje respecto del valor de la motocicleta | L28: año
A29: Supongamos una moto 2019 | B29: Precio | C29: Impuesto | D29: % respecto del valor | F29: 1 | G29: 2 | H29: 3 | I29: 4 | J29: 5 | L29: 1 | M29: 2 | N29: 3 | O29: 4 | P29: 5
A30: Crux-REV | B30: 895000 | C30: 700 | D30: =C30/B30 -> 0.000782122905 | F30: =C30-C30*$F$17 -> 560 | G30: =C30-C30*$G$17 -> 490 | H30: =C30-C30*$H$17 -> 420 | I30: =C30-C30*$I$17 -> 350 | J30: =C30-C30*$J$17 -> 210 | L30: =F30/B30 -> 0.000625698324 | M30: =G30/B30 -> 0.0005474860335 | N30: =H30/B30 -> 0.000469273743 | O30: =I30/B30 -> 0.0003910614525 | P30: =J30/B30 -> 0.0002346368715
A31: RAY ZR | B31: 1150000 | C31: 1500 | D31: =C31/B31 -> 0.001304347826 | F31: =C31-C31*$F$17 -> 1200 | G31: =C31-C31*$G$17 -> 1050 | H31: =C31-C31*$H$17 -> 900 | I31: =C31-C31*$I$17 -> 750 | J31: =C31-C31*$J$17 -> 450 | L31: =F31/B31 -> 0.001043478261 | M31: =G31/B31 -> 0.0009130434783 | N31: =H31/B31 -> 0.0007826086957 | O31: =I31/B31 -> 0.000652173913 | P31: =J31/B31 -> 0.0003913043478
A32: FZN 150 | B32: 1495000 | C32: 3000 | D32: =C32/B32 -> 0.002006688963 | F32: 2400 | G32: 2100 | H32: 1800 | I32: 1500 | J32: 900 | L32: 0.001605351171 | M32: 0.001404682274 | N32: 0.001204013378 | O32: 0.001003344482 | P32: 0.000602006689
A33: FZ 250 Fi | B33: 2255000 | C33: 8000 | D33: 0.00354767184 | F33: 6400 | G33: 5600 | H33: 4800 | I33: 4000 | J33: 2400 | L33: 0.002838137472 | M33: 0.002483370288 | N33: 0.002128603104 | O33: 0.00177383592 | P33: 0.001064301552
A34: YZF R6 | B34: 9670000 | C34: =B34*D34 -> 40227.2 | D34: 0.00416 | F34: 32181.76 | G34: 28159.04 | H34: 24136.32 | I34: 20113.6 | J34: 12068.16 | L34: 0.003328 | M34: 0.002912 | N34: 0.002496 | O34: 0.00208 | P34: 0.001248
E36: =B30*0.01/33 -> 271.2121212
A37: 2015 | B37: =B38/1.23 -> 55069.9187 | E37: =B31*0.01/33 -> 348.4848485
A38: 2016 | B38: 67736 | E38: 453.030303
A39: 2017 | B39: =B38*1.23 -> 83315.28 | E39: 683.3333333
A40: 2018 | B40: =B39*1.23 -> 102477.7944 | E40: 2930.30303
A41: 2019 | B41: 126047.6871
A43: supuesto de market share | C43: MARKET Share de moto
A44: De hasta 90 cc | B44: 35
A45: Más de 90 cc y hasta 125 cc | B45: 25
A46: Más de 125 cc y hasta 200 cc | B46: 20
A47: Más de 200 cc y hasta 450 cc | B47: 15
A48: Más de 450 cc | B48: 5
F49: año
B50: Cantidad motos | C50: Impuesto actual | D50: Impuestos propuesto | F50: 1 | G50: 2 | H50: 3 | I50: 4 | J50: 5
A51: Crux-REV | B51: =$B$41*(B44/100) -> 44116.69049 | C51: =B51*C20 -> 30881683.34 | D51: =B51*C30 -> 30881683.34 | F51: =B51*F30 -> 24705346.67 | G51: =B51*G30 -> 21617178.34 | H51: =B51*H30 -> 18529010.01 | I51: =B51*I30 -> 15440841.67 | J51: =B51*J30 -> 9264505.003
A52: RAY ZR | B52: =$B$41*(B45/100) -> 31511.92178 | C52: =B52*C21 -> 47267882.67 | D52: =B52*C31 -> 47267882.67 | F52: =B52*F31 -> 37814306.13 | G52: =B52*G31 -> 33087517.87 | H52: =B52*H31 -> 28360729.6 | I52: =B52*I31 -> 23633941.33 | J52: =B52*J31 -> 14180364.8
A53: FZN 150 | B53: 25209.53742 | C53: 75628612.27 | D53: 75628612.27 | F53: 60502889.81 | G53: 52940028.59 | H53: 45377167.36 | I53: 37814306.13 | J53: 22688583.68
A54: FZ 250 Fi | B54: 18907.15307 | C54: 151257224.5 | D54: 151257224.5 | F54: 121005779.6 | G54: 105880057.2 | H54: 90754334.72 | I54: 75628612.27 | J54: 45377167.36
A55: YZF R6 | B55: =$B$41*(B48/100) -> 6302.384356 | C55: =B55*C24 -> 94535765.33 | D55: =B55*C34 -> 253527275.9 | E55: Impuesto 1 | F55: =B55*F24 -> 75628612.27 | G55: =B55*G24 -> 66175035.73 | H55: =B55*H24 -> 56721459.2 | I55: =B55*I24 -> 47267882.67 | J55: =B55*J24 -> 28360729.6
E56: Impuesto 2 | F56: =B55*F34 -> 202821820.8 | G56: =B55*G34 -> 177469093.2 | H56: =B55*H34 -> 152116365.6 | I56: =B55*I34 -> 126763638 | J56: =B55*J34 -> 76058182.78
A57: Diferencia en 2019 por ajuste (colones) | B57: =(D55-C55) -> 158991510.6 | E57: diff | F57: =F56-F55 -> 127193208.5 | G57: =G56-G55 -> 111294057.4 | H57: 95394906.37 | I57: 79495755.31 | J57: 47697453.18
A58: Diferencia en 2019 por ajuste (USD) | B58: =B57*0.0018 -> 286184.7191
A59: Diferencia acumulada por ajuste (colones) | B59: =SUM(F57:J57) -> 461075380.8
A60: Diferenca acumulada por ajuste (USD) | B60: =B59*0.0018 -> 829935.6854

Sheet Info_tablas (hidden)
B2: Tarifas de congestión
B3: Parquímetros
B4: Impuesto a la propiedad de vehículo
B5: Impuesto único a los combustibles
B6: Patentes
B7: Contribuciones especiales
B9: caseta | C9: tarifa actual | D9: Hora pico | E9: Hora valle
B10: escazú | C10: 370 | D10: 555 | E10: 333
B11: ciudad colón | C11: 180 | D11: 270 | E11: 162
B12: san rafael | C12: 560 | D12: 840 | E12: 504
B13: guacima | C13: 420 | D13: 630 | E13: 378
B14: siquiares | C14: 440 | D14: 660 | E14: 396
B15: intercambio atenas | C15: 370 | D15: 555 | E15: 333
B16: atenas | C16: 740 | D16: 1110 | E16: 666
B17: intercambio pozon | C17: 180 | D17: 270 | E17: 162
B18: pozon | C18: 560 | D18: 840 | E18: 504
B20: Mes
B21: enero
B22: febrero
B23: marzo
B24: abril
B25: mayo
B26: junio
B27: julio
B28: agosto
B29: septiembre
B30: octubre
B31: noviembre
B32: diciembre
